[Event "13th Asrian Memorial 2022"]
[Site "Yerevan"]
[Date "2022.06.14"]
[Round "8.5"]
[White "Derbenev Andrey"]
[Black "Tabatabaei, M. Amin"]
[Result "0-1"]
[ECO "D43"]
[WhiteElo "2376"]
[BlackElo "2650"]
[Annotator "RC"]
[PlyCount "90"]
[EventDate "2022.06.07"]
[EventType "swiss"]
[EventCountry "ARM"]
[SourceTitle "playchess.com"]
[Source "ChessBase"]
[SourceQuality "1"]
[TimeControl "40/5400+30:1800+30"]

1. d4 {[%emt 0:00:02]} Nf6 {[%emt 0:04:03]} 2. c4 {[%emt 0:00:07]} e6 {[%emt 0:00:28]} 3. Nf3 {[%emt 0:00:19]} d5 {[%emt 0:00:07]} 4. Nc3 {[%emt 0:00:10]} c6 {[%emt 0:00:04]} 5. Bg5 {[%emt 0:01:32]} h6 {[%emt 0:06:08]} 6. Bxf6 {[%emt 0:00:28]} Qxf6 {[%emt 0:00:06]} 7. Qb3 {[%emt 0:00:06]} a5 {[%emt 0:00:16]} 8. e3 {[%emt 0:04:36]} a4 {[%emt 0:02:45]} 9. Qc2 {[%emt 0:01:27]} a3 {[%emt 0:01:01]} 10. b3 {[%emt 0:00:34]} Bb4 {[%emt 0:12:06]} 11. Bd3 {[%emt 0:05:14]} Nd7 {[%emt 0:00:07]} 12. O-O {[%emt 0:00:22]} O-O {[%emt 0:00:05]} 13. cxd5 {[%emt 0:09:53]} exd5 {[%emt 0:00:21]} 14. Na4 {[%emt 0:01:37]} Re8 {[%emt 0:01:24]} 15. Rac1 {[%emt 0:11:24]} g6 {[%emt 0:00:42]} 16. Rfd1 {[%emt 0:05:26]} Kg7 {[%emt 0:00:43]} 17. e4 {[%emt 0:12:20]} dxe4 {[%emt 0:00:36]} 18. Bxe4 {[%emt 0:00:04]} Qf4 {[%emt 0:12:20]} 19. Bd3 {[%emt 0:00:44]} Nf6 {[%emt 0:00:42]} 20. Ne5 {[%emt 0:10:41]} Ng4 {[%emt 0:00:48]} 21. Nf3 {[%emt 0:06:25]} Be6 {[%emt 0:03:46]} 22. Nb6 {[%emt 0:05:49]} Rad8 {[%emt 0:01:25]} 23. Bc4 {[%emt 0:02:08]} Bf5 {[%emt 0:05:27]} 24. Bd3 {[%emt 0:00:08]} Be6 {[%emt 0:12:06]} 25. Bc4 {[%emt 0:00:07]} Nf6 {[%emt 0:12:55]} 26. Bxe6 {[%emt 0:03:05]} Rxe6 {[%emt 0:00:01]} 27. Nc4 {[%emt 0:00:13]} Nd5 {[%emt 0:00:45]} 28. Nce5 {[%emt 0:01:30]} Bc3 {[%emt 0:05:12]} 29. Nd3 {[%emt 0:00:22]} Qf5 {[%emt 0:01:38]} 30. b4 {[%emt 0:04:35]} Rde8 {[%emt 0:05:26]} 31. Qb3 {[%emt 0:00:56]} Bb2 {[%emt 0:00:01]} 32. Rc5 {[%emt 0:08:04]} Re2 {[%emt 0:00:39]} 33. b5 {[%emt 0:00:39]} Bxd4 {[%emt 0:00:46]} 34. Rc4 {[%emt 0:01:14]} c5 {[%emt 0:01:31]} 35. h3 {[%emt 0:00:57]} Nf4 {[%emt 0:00:57]} 36. Nxd4 {[%emt 0:02:55]} cxd4 {[%emt 0:00:07]} 37. Nxf4 {[%emt 0:02:02]} Qxf4 {[%emt 0:00:25]} 38. Qg3 {[%emt 0:00:35]} Qxg3 {[%emt 0:00:14]} 39. fxg3 {[%emt 0:00:01]} Rxa2 {[%emt 0:00:07]} 40. Rcxd4 {[%emt 0:00:00]} Ree2 {[%emt 0:00:00]} 41. Kh1 {[%emt 0:02:22]} Rxg2 {[%emt 0:00:20]} 42. Ra1 {[%emt 0:00:03]} Rh2+ {[%emt 0:00:20]} 43. Kg1 {[%emt 0:00:02]} Rxa1+ {[%emt 0:00:15]} 44. Kxh2 {[%emt 0:00:01]} a2 {[%emt 0:00:06]} 45. Ra4 {[%emt 0:00:07]} f5 {[%emt 0:00:05]} 0-1

[Event "13th Asrian Memorial 2022"]
[Site "Yerevan"]
[Date "2022.06.14"]
[Round "8.6"]
[White "Yeritsyan, Hayk"]
[Black "Petrosyan, Manuel"]
[Result "0-1"]
[ECO "E39"]
[WhiteElo "2291"]
[BlackElo "2638"]
[Annotator "RC"]
[PlyCount "102"]
[EventDate "2022.06.07"]
[EventType "swiss"]
[EventCountry "ARM"]
[SourceTitle "playchess.com"]
[Source "ChessBase"]
[SourceQuality "1"]
[TimeControl "40/5400+30:1800+30"]

1. d4 {[%emt 0:00:55]} Nf6 {[%emt 0:00:25]} 2. c4 {[%emt 0:00:19]} e6 {[%emt 0:00:18]} 3. Nc3 {[%emt 0:00:35]} Bb4 {[%emt 0:00:19]} 4. Qc2 {[%emt 0:01:05]} O-O {[%emt 0:02:06]} 5. Nf3 {[%emt 0:00:22]} c5 {[%emt 0:01:20]} 6. dxc5 {[%emt 0:00:12]} Na6 {[%emt 0:00:30]} 7. g3 {[%emt 0:00:18]} Nxc5 {[%emt 0:01:40]} 8. Bg2 {[%emt 0:00:12]} Nce4 {[%emt 0:04:34]} 9. O-O {[%emt 0:00:22]} Bxc3 {[%emt 0:00:20]} 10. bxc3 {[%emt 0:00:10]} d5 {[%emt 0:04:12]} 11. cxd5 {[%emt 0:04:19]} exd5 {[%emt 0:00:40]} 12. c4 {[%emt 0:09:11]} Qc7 {[%emt 0:07:28]} 13. Bf4 {[%emt 0:04:44]} Qxc4 {[%emt 0:01:07]} 14. Rfc1 {[%emt 0:00:22]} Qxc2 {[%emt 0:16:12]} 15. Rxc2 {[%emt 0:00:21]} b6 {[%emt 0:00:15]} 16. Nd4 {[%emt 0:03:17]} Ba6 {[%emt 0:02:17]} 17. f3 {[%emt 0:17:30]} Nc5 {[%emt 0:00:25]} 18. Bd6 {[%emt 0:01:41]} Rfe8 {[%emt 0:01:56]} 19. Bxc5 {[%emt 0:01:05]} bxc5 {[%emt 0:00:10]} 20. Rxc5 {[%emt 0:00:08]} Bxe2 {[%emt 0:00:58]} 21. Rb1 {[%emt 0:05:06]} Bc4 {[%emt 0:02:25]} 22. Rc7 {[%emt 0:01:21]} Bxa2 {[%emt 0:11:01]} 23. Rbb7 {[%emt 0:00:15]} Reb8 {[%emt 0:04:16]} 24. Rxb8+ {[%emt 0:08:33]} Rxb8 {[%emt 0:01:06]} 25. Rxa7 {[%emt 0:00:02]} Bc4 {[%emt 0:02:32]} 26. Nc6 {[%emt 0:01:22]} Re8 {[%emt 0:01:19]} 27. Ne7+ {[%emt 0:01:58]} Kf8 {[%emt 0:00:17]} 28. Nf5 {[%emt 0:00:13]} g6 {[%emt 0:04:11]} 29. Nd4 {[%emt 0:08:58]} Re7 {[%emt 0:03:46]} 30. Ra8+ {[%emt 0:00:29]} Kg7 {[%emt 0:00:08]} 31. Kf2 {[%emt 0:00:12]} Rb7 {[%emt 0:00:42]} 32. g4 {[%emt 0:03:16]} h5 {[%emt 0:02:40]} 33. g5 {[%emt 0:01:33]} Nd7 {[%emt 0:00:08]} 34. f4 {[%emt 0:02:36]} Rb2+ {[%emt 0:05:35]} 35. Kg1 {[%emt 0:00:39]} Rd2 {[%emt 0:04:50]} 36. Nf3 {[%emt 0:02:01]} Rd1+ {[%emt 0:01:58]} 37. Kf2 {[%emt 0:00:01]} Nc5 {[%emt 0:00:06]} 38. Ne5 {[%emt 0:00:53]} Nd3+ {[%emt 0:00:32]} 39. Nxd3 {[%emt 0:07:40]} Rd2+ {[%emt 0:02:04]} 40. Kg3 {[%emt 0:00:00]} Rxd3+ {[%emt 0:00:00]} 41. Kf2 {[%emt 0:01:21]} Rd2+ {[%emt 0:00:36]} 42. Kf3 {[%emt 0:01:33]} d4 {[%emt 0:06:52]} 43. Rd8 {[%emt 0:00:13]} h4 {[%emt 0:00:19]} 44. h3 {[%emt 0:03:23]} Bb5 {[%emt 0:01:42]} 45. Rd6 {[%emt 0:00:13]} Rc2 {[%emt 0:00:25]} 46. Rxd4 {[%emt 0:02:22]} Bc6+ {[%emt 0:00:06]} 47. Kg4 {[%emt 0:00:01]} Bxg2 {[%emt 0:00:42]} 48. Rd3 {[%emt 0:00:09]} Bf1 {[%emt 0:00:51]} 49. Re3 {[%emt 0:00:07]} Rf2 {[%emt 0:00:09]} 50. Re4 {[%emt 0:00:17]} Re2 {[%emt 0:00:41]} 51. Rb4 {[%emt 0:00:13]} Re3 {[%emt 0:00:17]} 0-1

[Event "13th Asrian Memorial 2022"]
[Site "Yerevan"]
[Date "2022.06.14"]
[Round "8.7"]
[White "Davtyan, Arsen"]
[Black "Gharibyan, Mamikon"]
[Result "1-0"]
[ECO "C54"]
[WhiteElo "2308"]
[BlackElo "2487"]
[Annotator "RC"]
[PlyCount "99"]
[EventDate "2022.06.07"]
[EventType "swiss"]
[EventCountry "ARM"]
[SourceTitle "playchess.com"]
[Source "ChessBase"]
[SourceQuality "1"]
[TimeControl "40/5400+30:1800+30"]

1. e4 {[%emt 0:00:03]} e5 {[%emt 0:00:16]} 2. Nf3 {[%emt 0:00:07]} Nc6 {[%emt 0:00:06]} 3. Bc4 {[%emt 0:00:16]} Bc5 {[%emt 0:00:15]} 4. c3 {[%emt 0:00:07]} Nf6 {[%emt 0:00:11]} 5. d3 {[%emt 0:00:06]} d6 {[%emt 0:00:40]} 6. O-O {[%emt 0:00:14]} h6 {[%emt 0:00:35]} 7. h3 {[%emt 0:00:27]} a5 {[%emt 0:00:36]} 8. Re1 {[%emt 0:01:01]} Ba7 {[%emt 0:00:47]} 9. Nbd2 {[%emt 0:04:14]} g5 {[%emt 0:00:32]} 10. Nf1 {[%emt 0:05:08]} g4 {[%emt 0:05:07]} 11. hxg4 {[%emt 0:00:14]} Nxg4 {[%emt 0:00:47]} 12. d4 {[%emt 0:09:51]} Rg8 {[%emt 0:03:30]} 13. Ne3 {[%emt 0:12:14]} Nxe3 {[%emt 0:18:54]} 14. Bxe3 {[%emt 0:03:43]} Bh3 {[%emt 0:03:30]} 15. g3 {[%emt 0:03:09]} Qf6 {[%emt 0:08:22]} 16. dxe5 {[%emt 0:07:36]} dxe5 {[%emt 0:03:42]} 17. Bxa7 {[%emt 0:04:09]} Nxa7 {[%emt 0:01:35]} 18. Re3 {[%emt 0:10:40]} Bg4 {[%emt 0:04:40]} 19. Kg2 {[%emt 0:00:37]} Nc6 {[%emt 0:06:24]} 20. Bb5 {[%emt 0:08:35]} Kf8 {[%emt 0:04:27]} 21. Bxc6 {[%emt 0:03:20]} bxc6 {[%emt 0:00:28]} 22. Qa4 {[%emt 0:03:15]} Kg7 {[%emt 0:01:23]} 23. Rd1 {[%emt 0:01:34]} h5 {[%emt 0:04:11]} 24. Rdd3 {[%emt 0:03:21]} Kh7 {[%emt 0:06:33]} 25. Kf1 {[%emt 0:00:57]} Bh3+ {[%emt 0:06:14]} 26. Ke1 {[%emt 0:00:51]} Rgd8 {[%emt 0:01:48]} 27. Nh4 {[%emt 0:02:33]} Bg4 {[%emt 0:02:29]} 28. Qc2 {[%emt 0:04:20]} Rd6 {[%emt 0:01:33]} 29. Rxd6 {[%emt 0:02:33]} cxd6 {[%emt 0:00:58]} 30. c4 {[%emt 0:00:16]} Kg7 {[%emt 0:02:46]} 31. Kf1 {[%emt 0:01:05]} Qe6 {[%emt 0:05:37]} 32. Rd3 {[%emt 0:01:44]} Rf8 {[%emt 0:02:00]} 33. Kg1 {[%emt 0:00:55]} f5 {[%emt 0:01:14]} 34. exf5 {[%emt 0:00:13]} Bxf5 {[%emt 0:00:39]} 35. Rxd6 {[%emt 0:00:25]} Bxc2 {[%emt 0:01:50]} 36. Rxe6 {[%emt 0:00:04]} a4 {[%emt 0:00:01]} 37. Rxe5 {[%emt 0:04:40]} Rb8 {[%emt 0:00:00]} 38. b3 {[%emt 0:00:11]} axb3 {[%emt 0:00:09]} 39. axb3 {[%emt 0:00:03]} Bxb3 {[%emt 0:00:08]} 40. Rc5 {[%emt 0:00:00]} Rd8 {[%emt 0:00:00]} 41. Nf5+ {[%emt 0:08:30]} Kg6 {[%emt 0:07:32]} 42. Ne3 {[%emt 0:00:08]} Rd6 {[%emt 0:00:46]} 43. Kg2 {[%emt 0:00:26]} Ba2 {[%emt 0:01:44]} 44. Kh3 {[%emt 0:05:28]} Bb1 {[%emt 0:01:02]} 45. Kh4 {[%emt 0:00:49]} Rd4+ {[%emt 0:02:11]} 46. f4 {[%emt 0:00:19]} Be4 {[%emt 0:01:34]} 47. Rxh5 {[%emt 0:02:07]} Bf3 {[%emt 0:00:29]} 48. Re5 {[%emt 0:02:19]} Be2 {[%emt 0:01:24]} 49. Re6+ {[%emt 0:01:08]} Kf7 {[%emt 0:00:14]} 50. Rxc6 {[%emt 0:00:25]} 1-0

[Event "13th Asrian Memorial 2022"]
[Site "Yerevan"]
[Date "2022.06.15"]
[Round "9.1"]
[White "Davtyan, Artur"]
[Black "Sargsyan, Shant"]
[Result "1/2-1/2"]
[ECO "C42"]
[WhiteElo "2488"]
[BlackElo "2641"]
[Annotator "TA"]
[PlyCount "23"]
[EventDate "2022.06.07"]
[EventType "swiss"]
[EventCountry "ARM"]
[SourceTitle "playchess.com"]
[Source "ChessBase"]
[SourceQuality "1"]
[TimeControl "40/5400+30:1800+30"]

{[%evp 10,23,0,0,16,24,6,18,13,-13,-10,-15,-14,-14,-10,-15]} 1. e4 {[%emt 0:00:03]} e5 {[%emt 0:00:23]} 2. Nf3 {[%emt 0:00:13][%cal Bg1f3,Bf3e5,Be5c4,Bc4e3,Be3d5][%mdl 32]} Nf6 {[%emt 0:00:09]} 3. Nxe5 {[%emt 0:00:14]} d6 {[%emt 0:00:07]} 4. Nc4 {[%emt 0:00:05]} Nxe4 {[%emt 0:00:07]} 5. Qe2 {[%emt 0:00:04]} Qe7 {[%emt 0:00:07]} 6. Ne3 {[%emt 0:00:05] [#] aiming for Nd5.} Nc6 {[%emt 0:00:12][%cal Bb8c6,Bc6d4,Bd4e2,Be2c1][%mdl 32] C42: Petroff Defence: 3 Nxe5 and unusual White 3rd moves.} 7. Nd5 {[%emt 0:00:06]} Nd4 {[%emt 0:00:13] Threatens to win with ...Qe5.} 8. Nxe7 {[%emt 0:00:18] The position is equal.} Nxe2 {[%emt 0:00:13]} 9. Nxc8 {[%emt 0:00:06]} Nxc1 {[%emt 0:00:08]} 10. Nc3 {[%emt 0:00:03]} Nxc3 {[%emt 0:00:06] [#]} 11. bxc3 $146 {[%emt 0:00:04]} ({Predecessor:} 11. dxc3 Rxc8 12. Rxc1 c6 13. Kd2 g6 14. Re1+ Kd7 15. g3 h5 16. Re2 Bg7 17. Bh3+ {½-½ (30) Bailet,P (2494)-Joie,S (2402) Vaujany 2019}) 11... Rxc8 {[%emt 0:00:04]} 12. Rxc1 {[%emt 0:00:02] A balanced but interesting game.  Weighted Error Value: White=0.07 (flawless) /Black=0.04 (flawless)} 1/2-1/2

[Event "13th Asrian Memorial 2022"]
[Site "Yerevan"]
[Date "2022.06.15"]
[Round "9.2"]
[White "Ter-Sahakyan, Samvel"]
[Black "Tabatabaei, M. Amin"]
[Result "0-1"]
[ECO "B11"]
[WhiteElo "2640"]
[BlackElo "2650"]
[Annotator "TA"]
[PlyCount "166"]
[EventDate "2022.06.07"]
[EventType "swiss"]
[EventCountry "ARM"]
[SourceTitle "playchess.com"]
[Source "ChessBase"]
[SourceQuality "1"]
[TimeControl "40/5400+30:1800+30"]

{[%evp 34,166,1,-25,0,-17,14,0,20,0,0,-18,-22,-26,-25,-36,0,-20,14,16,25,0,0,-14,0,-23,-16,-17,-21,-2,0,-25,0,-77,-77,-77,-70,-70,-39,-55,-39,-54,-33,-32,-8,-69,-56,-66,-42,-28,0,-62,-45,-41,-20,-21,-21,-69,-69,-64,-41,-93,-93,-109,-93,-117,-103,-117,-117,-106,-92,-92,-85,-140,-133,-126,-126,-174,-118,-174,-174,-177,-104,-112,-112,-177,0,-177,-177,-169,-169,-170,-160,-172,-162,-162,-154,-154,-153,-142,-101,-101,-106,-178,-158,-270,-270,-549,-485,-410,-344,-483,-415,-602,-517,-29948,-29948,-29950,-1867,-29960,0,-4941,-1218,-29970,-29966,-29963,-29962,-29964,-29964,-29970,-29962,-8109,-7549,-2782,-1702]} 1. e4 {[%emt 0:26:24]} c6 {[%emt 0:04:49]} 2. Nf3 {[%emt 0:02:54]} d5 {[%emt 0:00:06]} 3. Nc3 {[%emt 0:00:12]} Bg4 {[%emt 0:00:07]} 4. h3 {[%emt 0:00:35]} Bxf3 {[%emt 0:00:06]} 5. Qxf3 {[%emt 0:00:04]} e6 {[%emt 0:00:08]} 6. Be2 {[%emt 0:00:17]} d4 {[%emt 0:00:42]} 7. Nb1 {[%emt 0:00:47]} Bd6 {[%emt 0:00:05]} 8. c3 {[%emt 0:05:45]} c5 {[%emt 0:00:23]} 9. Bb5+ {[%emt 0:23:56]} Nd7 {[%emt 0:00:45]} 10. Qe2 {[%emt 0:08:05]} Ne7 {[%emt 0:07:41]} 11. O-O {[%emt 0:01:38]} O-O {[%emt 0:13:41]} 12. cxd4 {[%emt 0:03:12]} cxd4 {[%emt 0:00:07]} 13. d3 {[%emt 0:00:07]} a6 {[%emt 0:08:27]} 14. Ba4 {[%emt 0:00:55]} Rc8 {[%emt 0:02:38]} 15. Nd2 {[%emt 0:01:48]} e5 {[%emt 0:02:15]} 16. a3 {[%emt 0:03:25]} Nc5 {[%emt 0:00:09]} 17. Bc2 {[%emt 0:00:18]} Qd7 {[%emt 0:00:12]} 18. Qd1 {[%emt 0:08:08]} b5 {[%emt 0:01:25]} 19. Nf3 {[%emt 0:08:44]} Rc6 {[%emt 0:08:57]} 20. Bd2 {[%emt 0:10:32]} Rfc8 {[%emt 0:01:36]} 21. Rc1 {[%emt 0:00:34]} Ng6 {[%emt 0:00:27]} 22. Bb1 {[%emt 0:03:05]} h6 {[%emt 0:00:29]} 23. Kh2 {[%emt 0:03:01]} Qe6 {[%emt 0:02:12]} 24. g3 {[%emt 0:01:52]} Be7 {[%emt 0:22:51]} 25. Kg2 Nf8 26. Bc2 Ncd7 27. Bb1 Rxc1 28. Bxc1 a5 29. Re1 b4 {[%emt 0:06:28]} 30. axb4 {[%emt 0:02:19]} axb4 {[%emt 0:00:16]} 31. Nd2 {[%emt 0:03:16]} Nc5 {[%emt 0:07:28]} 32. Nc4 {[%emt 0:00:29]} b3 {[%emt 0:01:11]} 33. Qg4 {[%emt 0:00:42]} (33. Bd2 $11 {keeps the balance.}) 33... Qxg4 $17 {[%emt 0:00:53]} 34. hxg4 {[%emt 0:00:03]} Nfd7 {[%emt 0:00:14]} 35. Bd2 {[%emt 0:01:44]} Ra8 {[%emt 0:02:24]} 36. Kf1 {[%emt 0:01:09]} Ra1 {[%emt 0:01:32]} 37. Ke2 {[%emt 0:00:18]} Ne6 {[%emt 0:08:21]} 38. f4 {[%emt 0:00:44]} g5 {[%emt 0:01:34]} 39. f5 {[%emt 0:00:42]} ({Don't play} 39. Nxe5 Nxe5 40. fxe5 Bf8 $17) ({White should try} 39. fxe5 $11 Bf8 40. Na5) 39... Nec5 $1 $15 {[%emt 0:00:23]} 40. Bb4 {[%emt 0:00:52]} Ra4 {[%emt 0:02:03]} 41. Ba3 {[%emt 0:06:32]} Kf8 {[%emt 0:01:41]} 42. Nd2 {[%emt 0:11:05]} (42. Rc1 $11) 42... Ra6 $15 {[%emt 0:03:42]} 43. Rc1 $1 {[%emt 0:00:47]} Ke8 {[%emt 0:00:07]} 44. Rc4 {[%emt 0:01:11]} Rb6 {[%emt 0:07:29]} 45. Rc1 {[%emt 0:00:24]} (45. Rb4 $1 $11 {is more appropriate.}) 45... Rb8 $15 {[%emt 0:01:58]} 46. Nc4 {[%emt 0:03:06]} Bf8 {[%emt 0:06:52]} 47. Bxc5 {[%emt 0:03:01]} (47. Rh1 $15) 47... Bxc5 $17 {[%emt 0:00:02]} 48. Nd2 {[%emt 0:00:12]} Rb5 $1 {[%emt 0:00:40]} 49. Kf3 {[%emt 0:02:14]} Kd8 {[%emt 0:01:18]} 50. Nc4 {[%emt 0:02:05]} Bf8 {[%emt 0:00:59]} 51. Ke2 {[%emt 0:00:37]} Nf6 {[%emt 0:05:02]} 52. Kf3 {[%emt 0:00:03]} Kd7 {[%emt 0:10:54]} 53. Rh1 ({White should play} 53. Nd2) 53... Kc7 $17 54. Rc1 Kb7 55. Rh1 (55. Rf1 $17) 55... Ka6 ({Better is} 55... Nd7 $1 $19 56. Rc1 f6) 56. Rd1 (56. Nd2 $17 {was called for.}) 56... Nd7 $1 $19 57. Ke2 Rb8 (57... f6 $19 58. Nd2 Nc5) 58. Nd2 $17 Nc5 59. Nc4 {[#]} (59. Rc1 $17 {keeps fighting.}) 59... Nd7 $2 (59... f6 $1 $19 {White must now prevent ...Na4.} 60. Kf3 Kb7) 60. Rc1 $2 {[%emt 0:00:16] [#]} (60. Nd2 $1 $11) 60... Rc8 $1 $19 {[%emt 0:00:13]} 61. Kf3 {[%emt 0:01:31]} Rc6 {[%emt 0:00:16]} 62. Rh1 {[%emt 0:00:29]} Kb5 {[%emt 0:00:16]} 63. Ke2 {[%emt 0:00:09]} Kb4 {[%emt 0:00:29]} 64. Rf1 {[%emt 0:00:32]} Bg7 {[%emt 0:00:32]} 65. Rd1 {[%emt 0:01:04]} Nc5 {[%emt 0:01:31]} 66. Rf1 {[%emt 0:00:09]} Na4 {[%emt 0:01:34]} ({Much weaker is} 66... Nxe4 $6 67. dxe4 Kxc4 68. Bd3+ Kb4 69. Ra1 $11) 67. Rh1 {[%emt 0:00:27]} f6 {[%emt 0:01:06]} 68. Kd2 {[%emt 0:01:19]} (68. Kf3 $17) 68... Bf8 $19 {[%emt 0:02:19]} 69. Rc1 {[%emt 0:00:22]} (69. Kc1 $17) 69... Rc5 $19 {[%emt 0:00:16]} 70. Rh1 $2 {[%emt 0:01:41]} (70. Kd1) 70... Rxc4 $19 {[%emt 0:01:02]} 71. dxc4 {[%emt 0:00:03]} Nxb2 {[%emt 0:00:04]} 72. c5 {[%emt 0:00:42]} (72. Bd3 {only move.} Na4 73. Rg1) 72... Nc4+ $19 {[%emt 0:01:19]} 73. Kd3 {[%emt 0:00:05]} (73. Ke2 $142 Kxc5 74. Rc1) 73... Bxc5 $19 {[%emt 0:00:20]} 74. Rxh6 {[%emt 0:00:16]} (74. Ke2 $19 Bf8 75. Kd3) 74... Na3 {[%emt 0:00:02]} 75. Rh1 {[%emt 0:00:27]} Bb6 {[%emt 0:00:40]} (75... Kb5 $142 76. Kd2 Bb4+ 77. Kd3 Ba5 78. Rg1 Bc3 79. Rf1 Kb4 80. Rh1 Nxb1 81. Rxb1 Ka3 82. Rh1 b2 83. Kc2 Ka2 84. Rg1 Ba5 85. Rf1 d3+ 86. Kxd3 b1=Q+ 87. Rxb1 Kxb1 88. Kc4 Kc2 89. Kb5 Bc3 90. Kc5 Kd3 91. Kd5 Ba5 92. Ke6 Kxe4 93. Kxf6 Kd5 94. Kxg5 e4 95. Kh5 e3 96. g5 e2 97. Kg6 e1=Q 98. f6 Qxg3 99. f7 Bb4 100. f8=B Bxf8 101. Kf6 Qe5+ 102. Kg6 Qe8+ 103. Kh7 Qf7+ 104. Kh8 Qg7#) 76. Rc1 {[%emt 0:00:59]} Bc5 {[%emt 0:01:13]} (76... Ba5 $142 77. Rh1 Nb5 78. Rh8 Nc3 79. Rb8+ Ka4 80. Bc2 bxc2 81. Kxc2 Nxe4 82. Kd3 Nf2+ 83. Kc4 Nxg4 84. Kd3 Nf2+ 85. Kc4 Ne4 86. Rf8 g4 87. Rg8 Nf2 88. Rb8 d3 89. Rb1 Ka3 90. Rb3+ Ka2 91. Rb5 Be1 92. Kd5 d2 93. Ra5+ Kb2 94. Rb5+ Kc3 95. Rc5+ Kb4 96. Rc6 d1=Q+ 97. Ke6 Ne4 98. Ke7 Qd5 99. Rb6+ Kc3 100. Rb1 Bxg3 101. Rc1+ Kb2 102. Rc8 Nd6 103. Rb8+ Kc3 104. Rf8 Nxf5+ 105. Kxf6 Bh4+ 106. Kxf5 Qf3+ 107. Kxe5 Qxf8 108. Kd5 Qf6 109. Kc5 Bf2+ 110. Kb5 Qb6+ 111. Ka4 Qb4#) 77. Rh1 $19 {[%emt 0:00:19]} Ka4 {[%emt 0:01:14]} (77... Kb5 $142 78. Kd2 Bb4+ 79. Kd3 Bc3) 78. Ke2 {[%emt 0:02:17]} Nxb1 {[%emt 0:01:08]} 79. Rxb1 {[%emt 0:00:05]} Bb4 {[%emt 0:00:33]} 80. Kd3 {[%emt 0:00:55]} Bc3 {[%emt 0:00:12]} 81. Rd1 {[%emt 0:01:13]} Kb4 {[%emt 0:00:26]} 82. Rh1 {[%emt 0:00:23]} b2 {[%emt 0:00:06]} 83. Kc2 {[%emt 0:00:14]} Kc4 {[%emt 0:00:05]} 0-1